bitfinex-derivatives/quotes_SOLF0:USTF0_20250310
["timestamp","ask_amount","ask_price","bid_price","bid_amount"]
[1741611217475,7.78418491,129.35,129.33,7.7308]
[1741611217774,0.05408491,129.35,129.31,19.41744552]
[1741611218168,0.05408491,129.35,129.34,7.7306]
[1741611219173,0.05408491,129.35,129.31,19.41744552]
[1741611219478,0.05408491,129.35,129.31,0.05894977]
[1741611219876,7.78448491,129.35,129.32,7.7315]
[1741611220174,0.05408491,129.35,129.32,7.7315]
[1741611220381,7.731,129.34,129.31,7.79094977]
[1741611220680,0.05408491,129.35,129.31,0.05894977]
[1741611220980,7.7315,129.33,129.31,0.05894977]
[1741611221173,0.05408491,129.35,129.31,0.05894977]
[1741611221873,7.7318,129.32,129.31,0.05894977]
[1741611223278,0.05408491,129.35,129.31,19.41744552]
[1741611223577,0.05408491,129.35,129.33,7.7311]
[1741611223778,0.05408491,129.35,129.31,19.41744552]
[1741611223976,0.05408491,129.35,129.31,0.05894977]
[1741611224975,7.7307,129.34,129.31,7.79104977]
[1741611225276,0.05408491,129.35,129.31,0.05894977]
[1741611225676,7.78438491,129.35,129.32,7.7314]
[1741611228473,7.78448491,129.35,129.32,7.7314]
[1741611230081,0.05408491,129.35,129.32,7.7314]
[1741611230375,0.05408491,129.35,129.31,0.05894977]
[1741611230779,7.7309,129.34,129.31,7.79104977]
[1741611230966,0.05408491,129.35,129.31,0.05894977]
[1741611231370,0.05408491,129.35,129.33,7.7309]
[1741611232079,7.78418491,129.35,129.31,0.05894977]
[1741611232377,7.78418491,129.35,129.32,7.7314]
[1741611232968,7.78418491,129.35,129.33,7.7311]
[1741611233177,0.05408491,129.35,129.31,0.05894977]
[1741611233977,0.05408491,129.35,129.33,19.35849575]
[1741611234277,0.05408491,129.35,129.34,7.7306]
[1741611234580,19.35849575,129.43,129.33,19.35849575]
[1741611234581,211.35849575,129.45,129.33,19.35849575]
[1741611234777,19.35849575,129.45,129.38,7.7278]
[1741611235579,7.727,129.4,129.37,7.7285]
[1741611235775,19.35849575,129.45,129.4,0.05010588]
[1741611235978,19.35849575,129.43,129.41,6.312e-05]
[1741611236279,2.0281,129.42,129.32,6.0748]
[1741611236469,19.35849575,129.41,129.32,6.0748]
[1741611236669,7.7285,129.38,129.33,85.96631015]
[1741611236867,23.56529575,129.41,129.33,85.96631015]
[1741611237279,7.78504221,129.38,129.36,0.05726299]
[1741611237481,0.05634221,129.38,129.36,0.05726299]
[1741611237880,7.7288,129.37,129.36,0.05726299]
[1741611242182,0.05634221,129.38,129.36,0.05726299]
[1741611242380,0.05634221,129.38,129.37,7.7288]
[1741611243884,0.05634221,129.38,129.36,0.05726299]
[1741611244084,0.05634221,129.38,129.36,7.78636299]
[1741611244984,0.05634221,129.38,129.36,0.05726299]
[1741611245378,0.05634221,129.38,129.37,7.7288]
[1741611245683,0.05634221,129.38,129.36,0.05726299]
[1741611246483,0.05634221,129.38,129.37,7.7288]
[1741611247089,0.05634221,129.38,129.37,69.7288]
[1741611247690,6.1832,129.46,129.37,85.21849575]
[1741611247986,15.4417,129.51,129.39,19.35849575]
[1741611248189,6.0662,129.5,129.42,7.7255]
[1741611248489,25.42469575,129.5,129.39,19.35849575]
[1741611248686,25.42469575,129.5,129.44,0.05106092]
[1741611248687,7.74595297,129.46,129.44,0.05106092]
[1741611248889,0.02215297,129.46,129.44,0.05106092]
[1741611249387,0.02215297,129.46,129.45,19.35849575]
[1741611249585,7.7207,129.51,129.45,19.35849575]
[1741611249885,16.46051672,129.54,129.47,19.35849575]
[1741611250091,10.43541672,129.54,129.47,19.35849575]
[1741611250286,10.43541672,129.54,129.49,19.35849575]
[1741611250685,18.15441672,129.54,129.5,0.05385152]
[1741611250880,10.43541672,129.54,129.5,0.05385152]
[1741611251086,4.0853,129.57,129.51,62.0]
[1741611251486,19.35849575,129.56,129.53,0.05059697]
[1741611251989,19.35849575,129.54,129.45,19.35849575]
[1741611252283,7.7227,129.48,129.44,4.0987]
[1741611252486,19.35849575,129.52,129.44,4.0987]
[1741611252687,19.35849575,129.52,129.43,40.95423874]
[1741611252881,19.35849575,129.5,129.43,21.59574299]
[1741611253079,0.05059697,129.49,129.46,0.05596556]
[1741611253584,19.35849575,129.48,129.39,19.35849575]
[1741611254290,32.90488238,129.49,129.38,11.8103]
[1741611254589,32.90488238,129.49,129.39,62.0]
[1741611254777,0.05925876,129.45,129.42,0.05528861]
[1741611255578,7.7252,129.43,129.42,0.05528861]
[1741611256377,0.05925876,129.45,129.42,0.05528861]
[1741611260390,7.7252,129.43,129.42,0.05528861]
[1741611260690,0.05925876,129.45,129.42,0.05528861]
[1741611261097,7.78365876,129.45,129.42,0.05528861]
[1741611261296,0.05925876,129.45,129.42,0.05528861]
[1741611261596,0.05925876,129.45,129.42,7.78058861]
[1741611262390,0.05925876,129.45,129.42,7.78068861]
[1741611262691,0.05925876,129.45,129.42,0.05528861]
[1741611263093,4.0838,129.5,129.42,0.05528861]
[1741611263094,1.9671,129.51,129.42,0.05528861]
[1741611263292,7.7215,129.5,129.42,1.40601384]
[1741611263486,3.9877,129.56,129.44,30.93858238]
[1741611263688,2.1036,129.55,129.47,30.93858238]
[1741611264203,0.04730377,129.52,129.5,0.05217838]
[1741611264900,0.04730377,129.52,129.5,7.77287838]
[1741611265410,0.04730377,129.52,129.5,0.05217838]
[1741611265705,32.93238238,129.6,129.51,7.7204]
[1741611265896,32.93238238,129.6,129.5,0.05217838]
[1741611266089,32.93238238,129.6,129.49,30.93858238]
[1741611266494,2.0456,129.62,129.51,30.93858238]
[1741611266701,34.85508238,129.65,129.52,1.9407]
[1741611266901,34.85508238,129.65,129.53,62.0]
[1741611267095,7.7156,129.6,129.57,0.05414842]
[1741611267299,7.7156,129.6,129.55,7.7179]
[1741611267595,34.85508238,129.65,129.57,0.05499349]
[1741611267797,30.93858238,129.63,129.53,62.0]
[1741611268003,30.93858238,129.61,129.53,62.0]
[1741611268501,7.7172,129.57,129.53,62.0]
[1741611269200,0.05698627,129.56,129.54,0.05356226]
[1741611269995,7.7181,129.55,129.54,0.05356226]
[1741611270802,0.05698627,129.56,129.47,30.93858238]
[1741611271004,7.7202,129.52,129.47,30.93858238]
[1741611271704,30.93858238,129.57,129.46,3.8821]
[1741611271910,30.93858238,129.55,129.46,3.8821]
[1741611272106,0.05159714,129.53,129.5,0.05838867]
[1741611272502,7.7204,129.51,129.5,0.05838867]
[1741611274501,2.00179714,129.53,129.5,0.05838867]
[1741611274706,7.7202,129.52,129.5,0.05838867]
[1741611275009,0.05159714,129.53,129.5,0.05838867]
[1741611275903,7.77089714,129.53,129.5,7.77908867]
[1741611276104,0.05159714,129.53,129.5,0.05838867]
[1741611276304,0.05159714,129.53,129.52,7.7198]
[1741611276607,0.05159714,129.53,129.52,69.7198]
[1741611278707,9.714e-05,129.53,129.52,69.7198]
[1741611278913,6.0673,129.62,129.52,65.86]
[1741611279113,6.0673,129.62,129.54,30.87313588]
[1741611279309,7.7154,129.6,129.54,30.87313588]
[1741611279815,6.0673,129.62,129.56,7.7169]
[1741611280014,7.77392426,129.59,129.57,0.05464209]
[1741611280510,0.05822426,129.59,129.57,0.05464209]
[1741611280714,7.7163,129.58,129.57,0.05464209]
[1741611281209,7.77402426,129.59,129.57,0.05464209]
[1741611281414,0.05822426,129.59,129.57,0.05464209]
[1741611282907,7.7163,129.58,129.57,0.05464209]
[1741611284012,7.77432426,129.59,129.57,0.05464209]
[1741611284415,0.05822426,129.59,129.57,0.05464209]
[1741611286123,7.7163,129.58,129.57,0.05464209]
[1741611288826,0.05822426,129.59,129.5,6.1434]
[1741611289008,30.87313588,129.6,129.5,6.1434]
[1741611289213,30.87313588,129.57,129.46,254.64]
[1741611289414,7.7207,129.51,129.46,274.1943203]
[1741611289611,4.1373,129.56,129.46,274.1943203]
[1741611289830,4.1373,129.56,129.47,7.7224]
[1741611290124,0.05429669,129.52,129.5,0.05232315]
[1741611290625,7.7228,129.47,129.45,85.96631015]
[1741611290919,30.87313588,129.54,129.45,85.96631015]
[1741611291724,7.721,129.5,129.48,0.05659263]
[1741611291924,0.05927426,129.51,129.48,0.05659263]
[1741611292225,7.7216,129.49,129.48,0.05659263]
[1741611292923,0.05927426,129.51,129.48,0.05659263]
[1741611293427,0.05927426,129.51,129.5,7.721]
[1741611294128,4.0881,129.6,129.5,30.87313588]
[1741611294621,4.0881,129.6,129.54,7.7183]
[1741611295219,4.0881,129.6,129.56,0.04960062]
[1741611295220,0.05337217,129.58,129.56,0.04960062]
[1741611298023,0.05337217,129.58,129.56,62.04960062]
[1741611298419,0.05337217,129.58,129.56,69.76700062]
[1741611298618,0.05337217,129.58,129.56,62.04960062]
[1741611299628,0.05337217,129.58,129.56,69.76700062]
[1741611301023,0.05337217,129.58,129.56,0.04960062]
[1741611301626,0.05337217,129.58,129.57,7.7169]
[1741611303926,0.05337217,129.58,129.57,69.7169]
[1741611304320,0.05337217,129.58,129.57,62.0]
[1741611304527,0.05337217,129.58,129.56,0.04960062]
[1741611305924,0.05337217,129.58,129.5,2.083]
[1741611306128,0.05337217,129.58,129.51,93.68641015]
[1741611306320,7.7173,129.57,129.51,85.96631015]
[1741611307026,7.7174,129.57,129.51,85.96631015]
[1741611307221,0.04944992,129.55,129.53,0.0571115]
[1741611308022,0.04944992,129.55,129.51,85.96631015]
[1741611308929,0.04944992,129.55,129.45,116.82114514]
[1741611309225,30.85483499,129.58,129.52,0.05140921]
[1741611309728,0.05654617,129.56,129.52,0.05140921]
[1741611310627,7.7192,129.53,129.52,0.05140921]
[1741611311635,32.86843499,129.55,129.44,34.95703499]
[1741611312137,7.7201,129.52,129.48,7.7219]
[1741611312629,7.7201,129.52,129.44,34.95703499]
[1741611312831,32.86843499,129.55,129.44,34.95703499]
[1741611312832,7.77173906,129.51,129.49,0.0577728]
[1741611313338,0.05073906,129.51,129.49,0.0577728]
[1741611314831,0.05073906,129.51,129.44,11.8265]
[1741611315134,0.05073906,129.51,129.44,4.1022]
[1741611315336,7.7224,129.48,129.44,11.8265]
[1741611315537,2.0685,129.52,129.44,11.8265]
[1741611315737,2.0685,129.52,129.44,4.1022]
[1741611315932,0.05615223,129.49,129.43,26.60472811]
[1741611316132,0.05615223,129.49,129.43,18.87982811]
[1741611316334,0.05615223,129.49,129.45,0.05933085]
[1741611316528,7.7234,129.46,129.45,0.05933085]
[1741611317032,0.05615223,129.49,129.45,0.05933085]
[1741611317937,7.7225,129.48,129.45,0.05933085]
[1741611319544,7.7225,129.48,129.45,7.78303085]
[1741611319745,7.7225,129.48,129.45,0.05933085]
[1741611319941,7.7223,129.48,129.45,0.05933085]
[1741611320541,7.7233,129.47,129.45,0.05933085]
[1741611320850,0.05615223,129.49,129.45,0.05933085]
[1741611321147,2.17165223,129.49,129.45,0.05933085]
[1741611321647,7.7234,129.46,129.45,0.05933085]
[1741611323046,2.17165223,129.49,129.45,0.05933085]
[1741611323549,7.7234,129.46,129.45,0.05933085]
[1741611328749,7.7234,129.46,129.45,3.085e-05]
[1741611329355,27.05745472,129.46,129.45,3.085e-05]
[1741611329854,30.91745472,129.46,129.45,3.085e-05]
[1741611331549,23.19405472,129.46,129.38,7.7279]
[1741611331751,19.33405472,129.46,129.37,21.45575472]
[1741611331952,19.33405472,129.46,129.37,83.45575472]
[1741611332254,7.7255,129.43,129.4,7.7267]
[1741611332557,7.7262,129.42,129.37,83.45575472]
[1741611332854,0.04931383,129.43,129.4,0.05842328]
[1741611333655,7.77491383,129.43,129.4,0.05842328]
[1741611333848,0.04931383,129.43,129.4,0.05842328]
[1741611334358,7.7261,129.42,129.4,0.05842328]
[1741611335243,7.7264,129.41,129.4,0.05842328]
[1741611335452,30.88,129.41,129.4,0.05842328]
[1741611336145,30.88,129.41,129.4,7.78542328]
[1741611336347,0.04931383,129.43,129.4,0.05842328]
[1741611336752,2.1155,129.49,129.41,19.33405472]
[1741611337050,32.9955,129.49,129.41,21.38345472]
[1741611337350,2.1171,129.5,129.41,21.38345472]
[1741611337550,256.8885,129.52,129.43,19.33405472]
[1741611337754,7.7213,129.5,129.47,7.7225]
[1741611337956,0.05887773,129.49,129.47,7.7225]
[1741611340867,7.78077773,129.49,129.46,0.05655312]
[1741611341354,30.93887773,129.49,129.46,0.05655312]
[1741611341554,50.27293245,129.49,129.46,0.05655312]
[1741611342256,30.93887773,129.49,129.46,0.05655312]
[1741611342662,7.7228,129.47,129.46,0.05655312]
[1741611343250,30.93887773,129.49,129.46,0.05655312]
[1741611345462,30.93887773,129.49,129.46,7.77945312]
[1741611345657,0.05887773,129.49,129.46,0.05655312]
[1741611345863,0.05887773,129.49,129.47,7.7227]
[1741611346754,0.05887773,129.49,129.46,0.05655312]
[1741611346755,7.78067773,129.49,129.46,7.77965312]
[1741611347361,7.7228,129.47,129.46,0.05655312]
[1741611348262,0.05887773,129.49,129.46,0.05655312]
[1741611348969,7.78077773,129.49,129.46,7.77975312]
[1741611349167,0.05887773,129.49,129.46,0.05655312]
[1741611349561,7.7222,129.48,129.46,0.05655312]
[1741611349964,7.78057773,129.49,129.46,0.05655312]
[1741611350270,0.05887773,129.49,129.46,0.05655312]
[1741611350564,7.78087773,129.49,129.46,0.05655312]
[1741611350767,0.05887773,129.49,129.46,0.05655312]
[1741611350969,0.05887773,129.49,129.47,7.7228]
[1741611351467,0.05887773,129.49,129.46,0.05655312]
[1741611351670,0.05887773,129.49,129.46,7.77975312]
[1741611351873,0.05887773,129.49,129.46,0.05655312]
[1741611352068,0.05887773,129.49,129.47,7.7224]
[1741611352275,0.05887773,129.49,129.46,0.05655312]
[1741611352667,0.05887773,129.49,129.47,7.7224]
[1741611352872,7.78077773,129.49,129.46,0.05655312]
[1741611353368,0.05887773,129.49,129.46,0.05655312]
[1741611353679,7.7228,129.47,129.46,0.05655312]
[1741611354676,38.5828,129.47,129.46,0.05655312]
[1741611356974,7.78077773,129.49,129.46,0.05655312]
[1741611357166,0.05887773,129.49,129.46,62.05655312]
[1741611357366,0.05887773,129.49,129.47,7.7223]
[1741611358169,30.86,129.52,129.47,7.7223]
[1741611358472,30.86,129.52,129.46,62.0]
[1741611358676,30.86,129.52,129.46,63.959]
[1741611358871,7.7213,129.5,129.46,63.959]
[1741611359265,30.86,129.52,129.46,63.959]
[1741611359463,0.05319501,129.49,129.47,0.04912128]
[1741611359673,0.05319501,129.49,129.47,7.77162128]
[1741611360274,7.77489501,129.49,129.47,7.77162128]
[1741611360573,0.05319501,129.49,129.47,0.04912128]
[1741611360772,7.7222,129.48,129.47,0.04912128]
[1741611363470,7.7222,129.48,129.47,2.128e-05]
[1741611364976,38.61509501,129.49,129.47,2.128e-05]
[1741611365981,0.05319501,129.49,129.47,2.128e-05]
[1741611366368,0.05319501,129.49,129.48,7.7222]
[1741611366573,0.05319501,129.49,129.47,2.128e-05]
[1741611367368,30.84,129.54,129.47,19.334076]
[1741611367572,30.84,129.54,129.47,21.289676]
[1741611367980,30.84,129.54,129.48,7.7219]
[1741611368181,30.84,129.54,129.47,21.28965472]
[1741611368479,0.05868964,129.52,129.49,0.0567591]
[1741611369475,0.05868964,129.52,129.5,7.7209]
[1741611369873,0.05868964,129.52,129.49,0.0567591]
[1741611370676,0.05868964,129.52,129.5,7.7206]
[1741611371870,0.05868964,129.52,129.49,7.7780591]
[1741611372075,0.05868964,129.52,129.49,0.0567591]
[1741611372076,7.721,129.5,129.49,0.0567591]
[1741611373082,7.7207,129.51,129.49,0.0567591]
[1741611373283,30.89868964,129.52,129.49,0.0567591]
[1741611373582,7.721,129.5,129.49,0.0567591]
[1741611373984,30.89868964,129.52,129.49,0.0567591]
[1741611374879,7.721,129.5,129.49,0.0567591]
[1741611375483,27.05505472,129.5,129.49,0.0567591]
[1741611377376,7.724,129.45,129.44,85.96631015]
[1741611377577,7.724,129.45,129.43,7.7248]
[1741611378185,7.7252,129.43,129.41,62.0]
[1741611378379,30.82,129.43,129.41,62.0]
[1741611378583,30.87600606,129.43,129.41,69.78537649]
[1741611378779,30.87600606,129.43,129.41,62.05897649]
[1741611379481,30.87600606,129.43,129.41,0.05897649]
[1741611379885,19.33405472,129.42,129.41,0.05897649]
[1741611380092,27.05985472,129.42,129.41,0.05897649]
[1741611380285,19.33405472,129.42,129.38,85.96631015]
[1741611380892,7.7276,129.39,129.38,85.96631015]
[1741611381184,38.5676,129.39,129.38,85.96631015]
[1741611383591,30.84,129.39,129.38,85.96631015]
[1741611383789,30.84,129.39,129.37,0.05337548]
[1741611385390,0.05405167,129.4,129.37,0.05337548]
[1741611385590,0.05405167,129.4,129.38,7.7278]
[1741611386195,0.05405167,129.4,129.39,7.7276]
[1741611386395,0.05405167,129.4,129.37,19.3874302]
[1741611386896,0.05405167,129.4,129.37,0.05337548]
[1741611387497,0.05405167,129.4,129.39,7.7276]
[1741611388390,30.84,129.44,129.42,7.7254]
[1741611388795,30.84,129.44,129.39,19.33405472]
[1741611388997,31.28295472,129.47,129.43,7.7252]
[1741611389291,30.84,129.5,129.42,30.84]
[1741611389591,30.84,129.5,129.47,7.7226]
[1741611390093,30.89787455,129.5,129.48,7.7221]
[1741611390291,0.05787455,129.5,129.48,7.7221]
[1741611390496,0.05787455,129.5,129.47,0.05649322]
[1741611393101,7.77927455,129.5,129.47,0.05649322]
[1741611393693,0.05787455,129.5,129.47,0.05649322]
[1741611394301,7.7221,129.49,129.47,0.05649322]
[1741611394504,0.05787455,129.5,129.47,0.05649322]
[1741611395000,7.77917455,129.5,129.47,0.05649322]
[1741611395704,7.7218,129.49,129.47,0.05649322]
[1741611395905,0.05787455,129.5,129.47,0.05649322]
[1741611396298,7.7216,129.49,129.47,0.05649322]
[1741611397203,7.77917455,129.5,129.47,0.05649322]
[1741611398006,7.7218,129.49,129.47,0.05649322]
[1741611399104,0.05787455,129.5,129.48,7.7219]
[1741611399498,0.05787455,129.5,129.48,19.33405472]
[1741611399706,0.05787455,129.5,129.49,7.7216]
[1741611400706,0.05787455,129.5,129.47,2.03309322]
[1741611401209,0.05787455,129.5,129.47,9.75579322]
[1741611401504,0.05787455,129.5,129.47,2.03309322]
[1741611402409,7.77917455,129.5,129.47,9.75569322]
[1741611402599,0.05787455,129.5,129.47,2.03309322]
[1741611403602,0.05787455,129.5,129.48,7.7219]
[1741611405120,7.77887455,129.5,129.47,9.75579322]
[1741611405308,0.05787455,129.5,129.47,0.05649322]
[1741611405614,7.7222,129.48,129.47,0.05649322]
[1741611408310,38.5222,129.48,129.47,0.05649322]
[1741611408520,7.7248,129.44,129.4,254.9]
[1741611408813,30.8,129.48,129.4,254.9]
[1741611409419,7.7237,129.46,129.43,7.7249]
[1741611409711,0.05923962,129.45,129.43,7.78118181]
[1741611409910,0.05923962,129.45,129.44,7.7246]
[1741611410117,0.05923962,129.45,129.43,0.05628181]
[1741611410412,7.7246,129.44,129.43,0.05628181]
[1741611411314,0.05923962,129.45,129.43,0.05628181]
[1741611411918,0.05923962,129.45,129.43,7.78098181]
[1741611412718,7.78333962,129.45,129.43,7.78098181]
[1741611413714,0.05923962,129.45,129.43,0.05628181]
[1741611413919,7.7246,129.44,129.43,0.05628181]
[1741611415216,7.7246,129.44,129.43,62.05628181]
[1741611416122,7.78353962,129.45,129.43,62.05628181]
[1741611416722,7.7246,129.44,129.43,62.05628181]
[1741611417211,7.7246,129.44,129.43,0.05628181]
[1741611419117,30.85923962,129.45,129.43,0.05628181]
[1741611419322,38.58353962,129.45,129.43,0.05628181]
[1741611419817,30.85923962,129.45,129.43,0.05628181]
[1741611420221,30.85923962,129.45,129.43,62.05628181]
[1741611420622,38.58353962,129.45,129.43,62.05628181]
[1741611421123,7.7246,129.44,129.43,62.05628181]
[1741611421323,7.7246,129.44,129.43,0.05628181]
[1741611422922,50.19329434,129.45,129.36,30.8]
[1741611423120,7.7267,129.41,129.38,7.7281]
[1741611423321,50.13405472,129.45,129.36,30.8]
[1741611423521,50.13405472,129.45,129.37,19.33405472]
[1741611423723,30.8,129.45,129.37,19.33405472]
[1741611424128,0.05202179,129.42,129.4,0.05008058]
[1741611424718,0.05202179,129.42,129.41,7.7264]
[1741611425521,0.05202179,129.42,129.4,0.05008058]
[1741611426327,7.77822179,129.42,129.4,0.05008058]
[1741611426822,7.77822179,129.42,129.4,7.77698058]
[1741611427028,0.05202179,129.42,129.4,0.05008058]
[1741611427527,7.77792179,129.42,129.4,0.05008058]
[1741611427919,0.05202179,129.42,129.4,0.05008058]
[1741611428525,0.05202179,129.42,129.4,7.77658058]
[1741611428725,0.05202179,129.42,129.4,0.05008058]
[1741611429121,0.05202179,129.42,129.41,7.7264]
[1741611429830,30.8,129.49,129.4,19.3841353]
[1741611430032,30.8,129.49,129.4,21.32555472]
[1741611430528,7.7233,129.47,129.4,21.32555472]
[1741611430728,30.8,129.49,129.4,21.32555472]
[1741611430928,0.05851256,129.45,129.42,0.04999434]
[1741611431533,0.05851256,129.45,129.42,7.77549434]
[1741611431731,0.05851256,129.45,129.42,0.04999434]
[1741611432135,0.05851256,129.45,129.43,7.7252]
[1741611433434,0.05851256,129.45,129.44,7.7246]
[1741611433635,0.05851256,129.45,129.42,0.04999434]
[1741611434634,7.78261256,129.45,129.42,0.04999434]
[1741611434933,0.05851256,129.45,129.42,0.04999434]
[1741611435734,0.05851256,129.45,129.43,7.7249]
[1741611436335,7.78281256,129.45,129.42,7.77529434]
[1741611436632,0.05851256,129.45,129.42,0.04999434]
[1741611436831,7.7249,129.44,129.42,0.04999434]
[1741611437135,0.05851256,129.45,129.42,0.04999434]
[1741611437531,7.7252,129.43,129.42,0.04999434]
[1741611438332,7.7249,129.44,129.42,0.04999434]
[1741611438532,0.05851256,129.45,129.42,0.04999434]
[1741611438933,7.7252,129.43,129.42,0.04999434]
[1741611439239,38.5052,129.43,129.42,0.04999434]
[1741611441333,38.5052,129.43,129.37,64.1272]
[1741611441736,7.7264,129.41,129.37,64.1272]
[1741611442436,0.05708741,129.4,129.38,0.05611038]
[1741611442941,7.78448741,129.4,129.38,0.05611038]
[1741611443538,7.7276,129.39,129.38,0.05611038]
[1741611445546,50.17114213,129.4,129.34,387.97786942]
[1741611445944,50.17114213,129.4,129.34,133.13786942]
[1741611446545,7.7299,129.36,129.34,133.13786942]
[1741611446745,19.33405472,129.38,129.36,0.05344051]
[1741611446938,1.9399,129.39,129.36,0.05344051]
[1741611447134,7.7289,129.37,129.36,0.05344051]
[1741611447945,7.77845127,129.38,129.36,0.05344051]
[1741611448136,0.04995127,129.38,129.36,0.05344051]
[1741611449940,0.04995127,129.38,129.36,7.78254051]
[1741611450250,0.04995127,129.38,129.36,0.05344051]
[1741611452745,7.7288,129.37,129.36,0.05344051]
[1741611453048,0.04995127,129.38,129.36,0.05344051]
[1741611453544,0.04995127,129.38,129.37,7.7288]
[1741611453750,0.04995127,129.38,129.36,0.05344051]
[1741611454250,0.04995127,129.38,129.36,7.78224051]
[1741611454749,0.04995127,129.38,129.37,7.7288]
[1741611457350,0.04995127,129.38,129.36,7.78254051]
[1741611457545,0.04995127,129.38,129.36,0.05344051]
[1741611457761,7.7288,129.37,129.36,0.05344051]
[1741611458547,7.77845127,129.38,129.36,0.05344051]
[1741611458748,0.04995127,129.38,129.36,0.05344051]
[1741611460350,7.77825127,129.38,129.36,7.78254051]
[1741611460856,0.04995127,129.38,129.36,0.05344051]
[1741611461047,0.04995127,129.38,129.37,7.7288]
[1741611462050,0.04995127,129.38,129.36,0.05344051]
[1741611462654,0.04995127,129.38,129.36,7.78254051]
[1741611463053,0.04995127,129.38,129.36,0.05344051]
[1741611463356,0.04995127,129.38,129.37,7.7288]
[1741611464553,0.04995127,129.38,129.36,0.05344051]
[1741611465055,0.04995127,129.38,129.36,7.78244051]
[1741611465659,0.04995127,129.38,129.37,7.7288]
[1741611466757,0.04995127,129.38,129.36,7.78244051]
[1741611466960,7.77815127,129.38,129.36,0.05344051]
[1741611467258,0.04995127,129.38,129.36,0.05344051]
[1741611467461,0.04995127,129.38,129.36,7.78234051]
[1741611467853,0.04995127,129.38,129.36,0.05344051]
[1741611467854,7.7288,129.37,129.36,0.05344051]
[1741611468060,7.7288,129.37,129.31,111.57196487]
[1741611468655,30.76,129.36,129.31,85.96631015]
[1741611468854,30.76,129.36,129.31,93.69831015]
[1741611469056,30.76,129.36,129.31,85.96631015]
[1741611469260,30.76,129.36,129.32,0.05005461]
[1741611469261,0.05509775,129.35,129.32,0.05005461]
[1741611474080,19.38915247,129.35,129.28,6.2062]
[1741611474483,19.38915247,129.35,129.29,7.7332]
[1741611474683,27.06405472,129.35,129.29,7.7332]
[1741611475079,19.33405472,129.35,129.26,85.96631015]
[1741611475385,0.05470763,129.33,129.31,0.0535373]
[1741611475684,30.76,129.32,129.31,0.0535373]
[1741611476183,0.05470763,129.33,129.31,0.0535373]
[1741611476684,0.05470763,129.33,129.32,7.7318]
[1741611476877,0.05470763,129.33,129.31,0.0535373]
[1741611477587,0.05470763,129.33,129.32,7.7318]
[1741611479486,0.05470763,129.33,129.31,7.7856373]
[1741611480076,0.05470763,129.33,129.32,7.7318]
[1741611480875,0.05470763,129.33,129.31,7.7855373]
[1741611481081,0.05470763,129.33,129.31,0.0535373]
[1741611481486,0.05470763,129.33,129.31,7.7856373]
[1741611481988,0.05470763,129.33,129.32,7.7318]
[1741611482179,0.05470763,129.33,129.31,0.0535373]
[1741611486885,0.05470763,129.33,129.31,12.4491734]
[1741611487891,0.05470763,129.33,129.31,20.1812734]
[1741611488683,0.05470763,129.33,129.32,7.7318]
[1741611488883,43.1556361,129.37,129.31,12.4491734]
[1741611489084,43.1556361,129.37,129.33,12.3956361]
[1741611489286,43.1556361,129.37,129.34,7.73]
[1741611489788,30.76,129.37,129.34,12.3956361]
[1741611489983,0.05761457,129.37,129.34,12.45389542]
[1741611490187,0.05761457,129.37,129.36,12.3956361]
[1741611490683,0.05761457,129.37,129.36,20.1250361]
[1741611491885,12.3956361,129.43,129.36,12.3956361]
[1741611492191,38.4862,129.42,129.38,20.1237361]
[1741611492395,38.4862,129.42,129.38,7.7281]
[1741611492991,0.05003707,129.41,129.39,0.05384162]
[1741611493192,7.77653707,129.41,129.39,0.05384162]
[1741611494680,0.05003707,129.41,129.4,7.727]
[1741611495489,30.74,129.45,129.39,19.39542449]
[1741611495986,30.74,129.45,129.43,7.7247]
[1741611496393,30.74,129.49,129.45,7.724]
[1741611496790,0.05330347,129.48,129.42,1.9568]
[1741611497092,0.05330347,129.48,129.46,0.05273826]
[1741611497493,0.05330347,129.48,129.46,7.77563826]
[1741611498085,30.74,129.52,129.46,0.05273826]
[1741611498386,30.74,129.52,129.45,19.34158287]
[1741611498790,30.74,129.52,129.46,7.7232]
[1741611498791,7.721,129.51,129.46,7.7232]
[1741611499293,0.04967632,129.5,129.47,0.05069801]
[1741611499486,7.77067632,129.5,129.47,0.05069801]
[1741611499994,0.04967632,129.5,129.48,7.7218]
[1741611500194,0.04967632,129.5,129.48,11.8853]
[1741611500694,0.04967632,129.5,129.49,7.7216]
[1741611501393,30.72,129.55,129.5,7.7204]
[1741611501695,30.72,129.55,129.49,19.34158287]
[1741611501890,7.7183,129.55,129.51,7.7203]
[1741611502288,7.7183,129.55,129.49,50.06158287]